[Event "Titled Tuesday Blitz June 20 Early 2023"]
[White "Mayaud, Raphael"]
[Black "Carrasco Miranda, Andres"]
[WhiteFideId "627151"]
[BlackFideId "3405990"]
[WhiteElo "2191"]
[BlackElo "2183"]
[Result "1/2-1/2"]
[Round "9"]
[TimeControl "180+2"]
[Date "2023.06.20"]
[WhiteClock "0:00:55"]
[BlackClock "0:01:09"]
[Board "132"]

1. d4 {[%clk 0:03:00]}  Nf6 {[%clk 0:02:58]} 2. Bg5 {[%clk 0:02:59]}  d5 {[%clk 0:02:55]} 3. Bxf6 {[%clk 0:02:59]}  gxf6 {[%clk 0:02:56]} 4. c4 {[%clk 0:02:59]}  e6 {[%clk 0:02:48]} 5. Nc3 {[%clk 0:02:55]}  Bb4 {[%clk 0:02:47]} 6. Qb3 {[%clk 0:02:50]}  Nc6 {[%clk 0:02:46]} 7. e3 {[%clk 0:02:49]}  a5 {[%clk 0:02:33]} 8. cxd5 {[%clk 0:02:46]}  Qxd5 {[%clk 0:02:30]} 9. Qxd5 {[%clk 0:02:46]}  exd5 {[%clk 0:02:31]} 10. Ne2 {[%clk 0:02:39]}  a4 {[%clk 0:02:24]} 11. a3 {[%clk 0:02:36]}  Ba5 {[%clk 0:02:18]} 12. g3 {[%clk 0:02:21]}  Be6 {[%clk 0:02:12]} 13. Bg2 {[%clk 0:02:20]}  Ne7 {[%clk 0:02:07]} 14. O-O {[%clk 0:02:15]}  Bxc3 {[%clk 0:02:06]} 15. bxc3 {[%clk 0:02:05]}  c6 {[%clk 0:02:06]} 16. Rab1 {[%clk 0:02:01]}  b5 {[%clk 0:02:05]} 17. Nf4 {[%clk 0:01:57]}  Kd7 {[%clk 0:02:01]} 18. Rfe1 {[%clk 0:01:57]}  f5 {[%clk 0:01:58]} 19. Nd3 {[%clk 0:01:56]}  Kd6 {[%clk 0:01:52]} 20. Nc5 {[%clk 0:01:44]}  h5 {[%clk 0:01:46]} 21. h4 {[%clk 0:01:43]}  Nc8 {[%clk 0:01:36]} 22. Kh2 {[%clk 0:01:41]}  Nb6 {[%clk 0:01:35]} 23. Bf1 {[%clk 0:01:41]}  Nd7 {[%clk 0:01:32]} 24. Nd3 {[%clk 0:01:29]}  Nf6 {[%clk 0:01:21]} 25. Bg2 {[%clk 0:01:19]}  Rhg8 {[%clk 0:01:17]} 26. Bf3 {[%clk 0:01:14]}  Ng4+ {[%clk 0:01:17]} 27. Bxg4 {[%clk 0:01:14]}  fxg4 {[%clk 0:01:15]} 28. Nf4 {[%clk 0:01:14]}  Bf5 {[%clk 0:01:13]} 29. Rb2 {[%clk 0:01:08]}  Rh8 {[%clk 0:01:13]} 30. Kg2 {[%clk 0:01:02]}  Be4+ {[%clk 0:01:12]} 31. Kh2 {[%clk 0:01:02]}  Bf3 {[%clk 0:01:12]} 32. Rc1 {[%clk 0:00:59]}  Rae8 {[%clk 0:01:09]} 33. Rcc2 {[%clk 0:00:55]} 1/2-1/2


[Site "https://www.chess.com"]

[Event "Titled Tuesday Blitz June 20 Early 2023"]
[White "Ai, Evan"]
[Black "Antonio, Jorge Carlos"]
[WhiteFideId "2094770"]
[BlackFideId "113190"]
[WhiteElo "1963"]
[BlackElo "2247"]
[Result "1-0"]
[Round "9"]
[TimeControl "180+2"]
[Date "2023.06.20"]
[WhiteClock "0:00:29"]
[BlackClock "0:00:06"]
[Board "133"]

1. e4 {[%clk 0:02:59]}  e5 {[%clk 0:02:57]} 2. Nf3 {[%clk 0:02:59]}  Nc6 {[%clk 0:02:56]} 3. Bb5 {[%clk 0:02:59]}  Nf6 {[%clk 0:02:53]} 4. O-O {[%clk 0:02:59]}  Nxe4 {[%clk 0:02:45]} 5. d4 {[%clk 0:02:58]}  Nd6 {[%clk 0:02:42]} 6. Bxc6 {[%clk 0:02:58]}  dxc6 {[%clk 0:02:39]} 7. dxe5 {[%clk 0:02:58]}  Nf5 {[%clk 0:02:35]} 8. Qxd8+ {[%clk 0:02:59]}  Kxd8 {[%clk 0:02:35]} 9. h3 {[%clk 0:03:00]}  Be6 {[%clk 0:02:21]} 10. Nc3 {[%clk 0:03:00]}  Bb4 {[%clk 0:02:17]} 11. Ne4 {[%clk 0:02:52]}  Ke7 {[%clk 0:02:12]} 12. Bg5+ {[%clk 0:02:49]}  Ke8 {[%clk 0:02:06]} 13. g4 {[%clk 0:02:44]}  Bd5 {[%clk 0:02:02]} 14. Ned2 {[%clk 0:02:30]}  h6 {[%clk 0:01:52]} 15. Bf4 {[%clk 0:02:24]}  Bxd2 {[%clk 0:01:48]} 16. Nxd2 {[%clk 0:02:16]}  Nd4 {[%clk 0:01:42]} 17. Kh2 {[%clk 0:02:04]}  Nxc2 {[%clk 0:01:38]} 18. Rac1 {[%clk 0:02:03]}  Nb4 {[%clk 0:01:34]} 19. Bg3 {[%clk 0:01:45]}  Nxa2 {[%clk 0:01:31]} 20. Rce1 {[%clk 0:01:42]}  Nb4 {[%clk 0:01:29]} 21. f4 {[%clk 0:01:41]}  Nd3 {[%clk 0:01:28]} 22. Re3 {[%clk 0:01:41]}  Nc5 {[%clk 0:01:22]} 23. f5 {[%clk 0:01:41]}  Kd7 {[%clk 0:01:13]} 24. b4 {[%clk 0:01:39]}  Na6 {[%clk 0:01:08]} 25. Rd1 {[%clk 0:01:19]}  Rae8 {[%clk 0:01:02]} 26. Ne4 {[%clk 0:00:49]}  Kc8 {[%clk 0:00:58]} 27. b5 {[%clk 0:00:48]}  Nb4 {[%clk 0:00:41]} 28. Nc3 {[%clk 0:00:45]}  Nc2 {[%clk 0:00:17]} 29. Re2 {[%clk 0:00:41]}  Nb4 {[%clk 0:00:17]} 30. Rb2 {[%clk 0:00:39]}  a5 {[%clk 0:00:13]} 31. bxa6 {[%clk 0:00:37]}  Nxa6 {[%clk 0:00:12]} 32. Nxd5 {[%clk 0:00:37]}  cxd5 {[%clk 0:00:12]} 33. Rxd5 {[%clk 0:00:38]}  Rd8 {[%clk 0:00:12]} 34. Rdb5 {[%clk 0:00:32]}  b6 {[%clk 0:00:11]} 35. e6 {[%clk 0:00:28]}  fxe6 {[%clk 0:00:10]} 36. fxe6 {[%clk 0:00:29]}  Rd6 {[%clk 0:00:10]} 37. Bxd6 {[%clk 0:00:28]}  cxd6 {[%clk 0:00:09]} 38. Rxb6 {[%clk 0:00:28]}  Nc7 {[%clk 0:00:06]} 39. Rb8# {[%clk 0:00:29]} 1-0


[Site "https://www.chess.com"]

[Event "Titled Tuesday Blitz June 20 Early 2023"]
[White "Novikova, Galina"]
[Black "Sanchez, Robert"]
[WhiteFideId "4157095"]
[BlackFideId "2034360"]
[WhiteElo "1953"]
[BlackElo "2027"]
[Result "1-0"]
[Round "9"]
[TimeControl "180+2"]
[Date "2023.06.20"]
[WhiteClock "0:01:44"]
[BlackClock "0:02:31"]
[Board "138"]

1. e4 {[%clk 0:02:40]}  e6 {[%clk 0:02:59]} 2. Nf3 {[%clk 0:02:40]}  d5 {[%clk 0:02:59]} 3. e5 {[%clk 0:02:41]}  c5 {[%clk 0:02:58]} 4. b4 {[%clk 0:02:41]}  c4 {[%clk 0:02:59]} 5. c3 {[%clk 0:02:41]}  Nc6 {[%clk 0:02:56]} 6. d3 {[%clk 0:02:41]}  cxd3 {[%clk 0:02:55]} 7. Bxd3 {[%clk 0:02:41]}  Nge7 {[%clk 0:02:54]} 8. O-O {[%clk 0:02:42]}  Ng6 {[%clk 0:02:54]} 9. Re1 {[%clk 0:02:41]}  Be7 {[%clk 0:02:54]} 10. a4 {[%clk 0:02:40]}  O-O {[%clk 0:02:54]} 11. a5 {[%clk 0:02:40]}  a6 {[%clk 0:02:54]} 12. g3 {[%clk 0:02:30]}  Bd7 {[%clk 0:02:54]} 13. h4 {[%clk 0:02:30]}  f5 {[%clk 0:02:47]} 14. exf6 {[%clk 0:02:26]}  Bxf6 {[%clk 0:02:47]} 15. Ng5 {[%clk 0:02:24]}  Nge5 {[%clk 0:02:39]} 16. Bxh7+ {[%clk 0:02:22]}  Kh8 {[%clk 0:02:35]} 17. Qh5 {[%clk 0:02:20]}  Bxg5 {[%clk 0:02:35]} 18. Bxg5 {[%clk 0:02:18]}  Nf3+ {[%clk 0:02:34]} 19. Kh1 {[%clk 0:02:11]}  Nxg5 {[%clk 0:02:31]} 20. hxg5 {[%clk 0:01:44]} 1-0


[Site "https://www.chess.com"]

[Event "Titled Tuesday Blitz June 20 Early 2023"]
[White "Mazurkiewicz, Michal"]
[Black "luachess1"]
[WhiteFideId "1124943"]
[WhiteElo "2063"]
[BlackElo "1707"]
[Result "1-0"]
[Round "9"]
[TimeControl "180+2"]
[Date "2023.06.20"]
[WhiteClock "0:01:58"]
[BlackClock "0:00:17"]
[Board "139"]

1. e4 {[%clk 0:02:58]}  c5 {[%clk 0:02:59]} 2. Nf3 {[%clk 0:02:59]}  Nc6 {[%clk 0:02:59]} 3. g3 {[%clk 0:02:59]}  g6 {[%clk 0:02:59]} 4. Bg2 {[%clk 0:02:59]}  Bg7 {[%clk 0:02:59]} 5. O-O {[%clk 0:02:57]}  d6 {[%clk 0:02:59]} 6. Re1 {[%clk 0:02:57]}  Qc7 {[%clk 0:02:58]} 7. d3 {[%clk 0:02:57]}  Nf6 {[%clk 0:02:57]} 8. c3 {[%clk 0:02:56]}  O-O {[%clk 0:02:57]} 9. d4 {[%clk 0:02:56]}  cxd4 {[%clk 0:02:57]} 10. cxd4 {[%clk 0:02:57]}  e6 {[%clk 0:02:42]} 11. Nc3 {[%clk 0:02:57]}  a6 {[%clk 0:02:40]} 12. h3 {[%clk 0:02:56]}  b5 {[%clk 0:02:37]} 13. e5 {[%clk 0:02:55]}  dxe5 {[%clk 0:02:19]} 14. dxe5 {[%clk 0:02:55]}  Nd7 {[%clk 0:02:17]} 15. Bf4 {[%clk 0:02:54]}  Rd8 {[%clk 0:02:13]} 16. Bg5 {[%clk 0:02:44]}  Re8 {[%clk 0:02:08]} 17. Ne4 {[%clk 0:02:38]}  Ndxe5 {[%clk 0:01:49]} 18. Nxe5 {[%clk 0:02:37]}  Bxe5 {[%clk 0:01:48]} 19. Nf6+ {[%clk 0:02:34]}  Bxf6 {[%clk 0:01:42]} 20. Bxf6 {[%clk 0:02:35]}  Bb7 {[%clk 0:01:18]} 21. Qd2 {[%clk 0:02:34]}  Ne7 {[%clk 0:01:17]} 22. Rac1 {[%clk 0:02:29]}  Qb6 {[%clk 0:01:12]} 23. g4 {[%clk 0:02:24]}  e5 {[%clk 0:00:52]} 24. Bxb7 {[%clk 0:02:15]}  Qxf6 {[%clk 0:00:44]} 25. Bxa8 {[%clk 0:02:14]}  Rxa8 {[%clk 0:00:45]} 26. Qe3 {[%clk 0:02:11]}  Nc6 {[%clk 0:00:40]} 27. Qe4 {[%clk 0:02:08]}  Rc8 {[%clk 0:00:34]} 28. Rc5 {[%clk 0:02:05]}  Qd8 {[%clk 0:00:17]} 29. Rxc6 {[%clk 0:01:58]} 1-0


[Site "https://www.chess.com"]

[Event "Titled Tuesday Blitz June 20 Early 2023"]
[White "Winkels, Marcel"]
[Black "Ardila, Oscar Humberto"]
[WhiteFideId "1003887"]
[BlackFideId "4404742"]
[WhiteElo "1900"]
[BlackElo "1912"]
[Result "1-0"]
[Round "9"]
[TimeControl "180+2"]
[Date "2023.06.20"]
[WhiteClock "0:00:41"]
[BlackClock "0:00:42"]
[Board "144"]

1. e4 {[%clk 0:03:00]}  e5 {[%clk 0:02:57]} 2. Nf3 {[%clk 0:02:59]}  Nf6 {[%clk 0:02:57]} 3. Nxe5 {[%clk 0:02:55]}  d6 {[%clk 0:02:57]} 4. Nf3 {[%clk 0:02:55]}  Nxe4 {[%clk 0:02:57]} 5. Nc3 {[%clk 0:02:56]}  Nxc3 {[%clk 0:02:58]} 6. dxc3 {[%clk 0:02:56]}  Be7 {[%clk 0:02:59]} 7. Be3 {[%clk 0:02:55]}  O-O {[%clk 0:02:59]} 8. Qd2 {[%clk 0:02:55]}  Nd7 {[%clk 0:03:00]} 9. O-O-O {[%clk 0:02:55]}  c5 {[%clk 0:02:57]} 10. Bf4 {[%clk 0:02:32]}  Qa5 {[%clk 0:02:55]} 11. Kb1 {[%clk 0:02:29]}  Nf6 {[%clk 0:02:52]} 12. c4 {[%clk 0:02:22]}  Qa6 {[%clk 0:02:44]} 13. Bd3 {[%clk 0:02:09]}  Be6 {[%clk 0:02:43]} 14. b3 {[%clk 0:02:07]}  d5 {[%clk 0:02:36]} 15. cxd5 {[%clk 0:02:01]}  c4 {[%clk 0:02:33]} 16. Bxc4 {[%clk 0:02:00]}  b5 {[%clk 0:02:33]} 17. Bxb5 {[%clk 0:01:48]}  Qxb5 {[%clk 0:02:32]} 18. dxe6 {[%clk 0:01:48]}  fxe6 {[%clk 0:02:31]} 19. Rhe1 {[%clk 0:01:45]}  Nd5 {[%clk 0:02:30]} 20. Be5 {[%clk 0:01:42]}  Bf6 {[%clk 0:02:23]} 21. Nd4 {[%clk 0:01:27]}  Qc5 {[%clk 0:01:49]} 22. Nxe6 {[%clk 0:01:13]}  Nc3+ {[%clk 0:01:20]} 23. Bxc3 {[%clk 0:01:08]}  Qxc3 {[%clk 0:01:20]} 24. Qxc3 {[%clk 0:01:05]}  Bxc3 {[%clk 0:01:21]} 25. Nxf8 {[%clk 0:01:05]}  Bxe1 {[%clk 0:01:21]} 26. Rxe1 {[%clk 0:01:04]}  Rxf8 {[%clk 0:01:21]} 27. f3 {[%clk 0:01:04]}  Kf7 {[%clk 0:01:19]} 28. c4 {[%clk 0:01:02]}  Rd8 {[%clk 0:01:18]} 29. Re2 {[%clk 0:01:02]}  Rd1+ {[%clk 0:01:18]} 30. Kc2 {[%clk 0:01:02]}  Ra1 {[%clk 0:01:18]} 31. Kc3 {[%clk 0:01:01]}  Rh1 {[%clk 0:01:17]} 32. c5 {[%clk 0:01:00]}  Rc1+ {[%clk 0:01:15]} 33. Rc2 {[%clk 0:01:00]}  Rd1 {[%clk 0:01:15]} 34. c6 {[%clk 0:01:00]}  Ke7 {[%clk 0:01:15]} 35. Kb2 {[%clk 0:00:57]}  Kd8 {[%clk 0:01:15]} 36. b4 {[%clk 0:00:57]}  Kc7 {[%clk 0:01:15]} 37. b5 {[%clk 0:00:57]}  Rd4 {[%clk 0:01:09]} 38. Kb3 {[%clk 0:00:56]}  Rd3+ {[%clk 0:01:10]} 39. Rc3 {[%clk 0:00:55]}  Rd1 {[%clk 0:01:10]} 40. a4 {[%clk 0:00:54]}  Ra1 {[%clk 0:01:09]} 41. Kb4 {[%clk 0:00:54]}  Ra2 {[%clk 0:01:05]} 42. Rd3 {[%clk 0:00:53]}  Rxg2 {[%clk 0:00:59]} 43. Rd7+ {[%clk 0:00:51]}  Kb8 {[%clk 0:01:00]} 44. a5 {[%clk 0:00:49]}  Rb2+ {[%clk 0:00:55]} 45. Kc5 {[%clk 0:00:49]}  Rc2+ {[%clk 0:00:55]} 46. Kd6 {[%clk 0:00:48]}  Rd2+ {[%clk 0:00:51]} 47. Ke7 {[%clk 0:00:48]}  Rxh2 {[%clk 0:00:51]} 48. b6 {[%clk 0:00:46]}  axb6 {[%clk 0:00:51]} 49. axb6 {[%clk 0:00:46]}  Rc2 {[%clk 0:00:42]} 50. Rd8# {[%clk 0:00:41]} 1-0


[Site "https://www.chess.com"]

[Event "Titled Tuesday Blitz June 20 Early 2023"]
[White "Sarkar, Justin"]
[Black "Baruch, Liam"]
[WhiteFideId "2010011"]
[BlackFideId "14322064"]
[WhiteElo "2151"]
[BlackElo "2129"]
[Result "1-0"]
[Round "9"]
[TimeControl "180+2"]
[Date "2023.06.20"]
[WhiteClock "0:00:10"]
[BlackClock "0:00:36"]
[Board "145"]

1. d4 {[%clk 0:02:28]}  d5 {[%clk 0:03:00]} 2. c4 {[%clk 0:02:27]}  e6 {[%clk 0:03:00]} 3. Nc3 {[%clk 0:02:26]}  Nf6 {[%clk 0:03:01]} 4. Bg5 {[%clk 0:02:26]}  Be7 {[%clk 0:03:02]} 5. e3 {[%clk 0:02:25]}  h6 {[%clk 0:03:02]} 6. Bh4 {[%clk 0:02:24]}  O-O {[%clk 0:03:01]} 7. Nf3 {[%clk 0:02:24]}  b6 {[%clk 0:03:01]} 8. Rb1 {[%clk 0:02:13]}  Bb7 {[%clk 0:02:59]} 9. Bxf6 {[%clk 0:02:11]}  Bxf6 {[%clk 0:02:59]} 10. cxd5 {[%clk 0:02:12]}  exd5 {[%clk 0:02:48]} 11. b4 {[%clk 0:02:11]}  Nc6 {[%clk 0:02:34]} 12. Bd3 {[%clk 0:02:04]}  Qe7 {[%clk 0:02:31]} 13. Nxd5 {[%clk 0:01:58]}  Qd6 {[%clk 0:02:31]} 14. Nxf6+ {[%clk 0:01:57]}  Qxf6 {[%clk 0:02:29]} 15. O-O {[%clk 0:01:55]}  Ne7 {[%clk 0:02:23]} 16. Ne5 {[%clk 0:01:51]}  Ng6 {[%clk 0:02:10]} 17. Bxg6 {[%clk 0:01:35]}  fxg6 {[%clk 0:02:11]} 18. Qc2 {[%clk 0:01:33]}  Kh7 {[%clk 0:02:02]} 19. Nd7 {[%clk 0:01:22]}  Qg5 {[%clk 0:01:53]} 20. Nxf8+ {[%clk 0:01:21]}  Rxf8 {[%clk 0:01:52]} 21. f4 {[%clk 0:01:20]}  Qe7 {[%clk 0:01:52]} 22. Qc3 {[%clk 0:01:12]}  Re8 {[%clk 0:01:42]} 23. Rbc1 {[%clk 0:01:07]}  Qe4 {[%clk 0:01:37]} 24. Rf2 {[%clk 0:01:06]}  c5 {[%clk 0:01:32]} 25. bxc5 {[%clk 0:01:03]}  bxc5 {[%clk 0:01:33]} 26. dxc5 {[%clk 0:01:02]}  Rc8 {[%clk 0:01:29]} 27. Qd4 {[%clk 0:00:56]}  Qf5 {[%clk 0:01:22]} 28. c6 {[%clk 0:00:40]}  Bxc6 {[%clk 0:01:04]} 29. Rfc2 {[%clk 0:00:37]}  Qe6 {[%clk 0:01:04]} 30. h3 {[%clk 0:00:19]}  Bd7 {[%clk 0:00:50]} 31. Rxc8 {[%clk 0:00:16]}  Bxc8 {[%clk 0:00:51]} 32. Qxa7 {[%clk 0:00:15]}  Qf6 {[%clk 0:00:35]} 33. Rxc8 {[%clk 0:00:12]}  Qa1+ {[%clk 0:00:33]} 34. Kh2 {[%clk 0:00:12]}  Qf6 {[%clk 0:00:32]} 35. Rc7 {[%clk 0:00:12]}  g5 {[%clk 0:00:31]} 36. Rxg7+ {[%clk 0:00:11]}  Qxg7 {[%clk 0:00:29]} 37. Qxg7+ {[%clk 0:00:11]}  Kxg7 {[%clk 0:00:30]} 38. fxg5 {[%clk 0:00:11]}  hxg5 {[%clk 0:00:31]} 39. Kg3 {[%clk 0:00:11]}  Kf7 {[%clk 0:00:32]} 40. Kg4 {[%clk 0:00:11]}  Kf6 {[%clk 0:00:33]} 41. e4 {[%clk 0:00:11]}  Kg6 {[%clk 0:00:34]} 42. e5 {[%clk 0:00:11]}  Kh6 {[%clk 0:00:35]} 43. a4 {[%clk 0:00:10]}  Kg7 {[%clk 0:00:36]} 44. Kxg5 {[%clk 0:00:10]}  Kf7 {[%clk 0:00:36]} 45. Kf5 {[%clk 0:00:10]}  Ke7 {[%clk 0:00:37]} 46. e6 {[%clk 0:00:10]}  Ke8 {[%clk 0:00:36]} 47. Kf6 {[%clk 0:00:11]}  Kf8 {[%clk 0:00:36]} 48. e7+ {[%clk 0:00:11]}  Ke8 {[%clk 0:00:36]} 49. a5 {[%clk 0:00:10]}  Kd7 {[%clk 0:00:36]} 50. Kf7 {[%clk 0:00:10]}  Kc7 {[%clk 0:00:35]} 51. e8=Q {[%clk 0:00:10]}  Kb7 {[%clk 0:00:36]} 52. Qb5+ {[%clk 0:00:09]}  Ka8 {[%clk 0:00:36]} 53. a6 {[%clk 0:00:09]}  Ka7 {[%clk 0:00:36]} 54. Qb7# {[%clk 0:00:10]} 1-0


[Site "https://www.chess.com"]

[Event "Titled Tuesday Blitz June 20 Early 2023"]
[White "Saim, Mohamed Ilias"]
[Black "Georg, Heinz"]
[WhiteFideId "7900465"]
[BlackFideId "4607295"]
[WhiteElo "2063"]
[BlackElo "2276"]
[Result "1-0"]
[Round "9"]
[TimeControl "180+2"]
[Date "2023.06.20"]
[WhiteClock "0:00:24"]
[BlackClock "0:00:00"]
[Board "146"]

1. d4 {[%clk 0:03:00]}  f5 {[%clk 0:02:58]} 2. c4 {[%clk 0:02:58]}  Nf6 {[%clk 0:02:58]} 3. e3 {[%clk 0:02:57]}  e6 {[%clk 0:02:55]} 4. Bd3 {[%clk 0:02:57]}  b6 {[%clk 0:02:55]} 5. Ne2 {[%clk 0:02:54]}  Bb7 {[%clk 0:02:54]} 6. f3 {[%clk 0:02:54]}  d5 {[%clk 0:02:51]} 7. O-O {[%clk 0:02:53]}  c6 {[%clk 0:02:42]} 8. Nbc3 {[%clk 0:02:53]}  Be7 {[%clk 0:02:38]} 9. e4 {[%clk 0:02:53]}  fxe4 {[%clk 0:02:22]} 10. fxe4 {[%clk 0:02:52]}  dxe4 {[%clk 0:02:13]} 11. Nxe4 {[%clk 0:02:49]}  c5 {[%clk 0:02:03]} 12. Nxf6+ {[%clk 0:02:22]}  Bxf6 {[%clk 0:02:02]} 13. Be3 {[%clk 0:01:38]}  cxd4 {[%clk 0:01:42]} 14. Nxd4 {[%clk 0:01:37]}  Bxd4 {[%clk 0:01:05]} 15. Bxd4 {[%clk 0:01:37]}  Qxd4+ {[%clk 0:01:02]} 16. Kh1 {[%clk 0:01:36]}  Nc6 {[%clk 0:00:58]} 17. Qh5+ {[%clk 0:01:27]}  g6 {[%clk 0:00:50]} 18. Bxg6+ {[%clk 0:01:27]}  hxg6 {[%clk 0:00:50]} 19. Qxg6+ {[%clk 0:01:27]}  Kd7 {[%clk 0:00:31]} 20. Rad1 {[%clk 0:01:23]}  Rad8 {[%clk 0:00:18]} 21. Qg7+ {[%clk 0:01:15]}  Kc8 {[%clk 0:00:16]} 22. Rxd4 {[%clk 0:01:15]}  Nxd4 {[%clk 0:00:15]} 23. Qe5 {[%clk 0:00:45]}  Rhf8 {[%clk 0:00:05]} 24. Rd1 {[%clk 0:00:42]}  Nc6 {[%clk 0:00:04]} 25. Qxe6+ {[%clk 0:00:41]}  Kb8 {[%clk 0:00:04]} 26. Rc1 {[%clk 0:00:32]}  Nd4 {[%clk 0:00:02]} 27. Qe5+ {[%clk 0:00:30]}  Ka8 {[%clk 0:00:00]} 28. b4 {[%clk 0:00:24]} 1-0


[Site "https://www.chess.com"]

[Event "Titled Tuesday Blitz June 20 Early 2023"]
[White "Iskusnyh, Sergei"]
[Black "Francisco_Ferrari"]
[WhiteFideId "4120027"]
[WhiteElo "2492"]
[BlackElo "2260"]
[Result "1-0"]
[Round "9"]
[TimeControl "180+2"]
[Date "2023.06.20"]
[WhiteClock "0:02:01"]
[BlackClock "0:01:20"]
[Board "147"]

1. d4 {[%clk 0:03:00]}  Nf6 {[%clk 0:02:58]} 2. c4 {[%clk 0:03:00]}  e6 {[%clk 0:02:58]} 3. g3 {[%clk 0:03:00]}  d5 {[%clk 0:02:58]} 4. Bg2 {[%clk 0:03:00]}  Be7 {[%clk 0:02:58]} 5. Nf3 {[%clk 0:02:59]}  O-O {[%clk 0:02:59]} 6. Qc2 {[%clk 0:02:59]}  dxc4 {[%clk 0:02:49]} 7. Qxc4 {[%clk 0:03:00]}  a6 {[%clk 0:02:49]} 8. Bf4 {[%clk 0:02:58]}  Nd5 {[%clk 0:02:45]} 9. Nc3 {[%clk 0:02:56]}  b5 {[%clk 0:02:35]} 10. Qb3 {[%clk 0:02:55]}  Bb7 {[%clk 0:02:34]} 11. Nxd5 {[%clk 0:02:35]}  Bxd5 {[%clk 0:02:29]} 12. Qc2 {[%clk 0:02:35]}  Nc6 {[%clk 0:02:20]} 13. O-O {[%clk 0:02:16]}  Bxf3 {[%clk 0:02:09]} 14. Bxf3 {[%clk 0:02:06]}  Nxd4 {[%clk 0:02:09]} 15. Qxc7 {[%clk 0:02:06]}  Qxc7 {[%clk 0:02:02]} 16. Bxc7 {[%clk 0:02:07]}  Nxf3+ {[%clk 0:02:02]} 17. exf3 {[%clk 0:02:08]}  Rac8 {[%clk 0:02:00]} 18. Rac1 {[%clk 0:02:07]}  Bd8 {[%clk 0:01:51]} 19. Bd6 {[%clk 0:02:06]}  Rxc1 {[%clk 0:01:27]} 20. Rxc1 {[%clk 0:02:07]}  Re8 {[%clk 0:01:27]} 21. Rc8 {[%clk 0:02:04]}  f6 {[%clk 0:01:23]} 22. Bc7 {[%clk 0:02:04]}  Bxc7 {[%clk 0:01:21]} 23. Rxe8+ {[%clk 0:02:03]}  Kf7 {[%clk 0:01:22]} 24. Ra8 {[%clk 0:02:02]}  a5 {[%clk 0:01:20]} 25. Ra7 {[%clk 0:02:01]} 1-0


[Site "https://www.chess.com"]

[Event "Titled Tuesday Blitz June 20 Early 2023"]
[White "Prydun, Andriy"]
[Black "KSho99"]
[WhiteFideId "14145898"]
[WhiteElo "2164"]
[BlackElo "2196"]
[Result "0-1"]
[Round "9"]
[TimeControl "180+2"]
[Date "2023.06.20"]
[WhiteClock "0:00:00"]
[BlackClock "0:00:11"]
[Board "150"]

1. e4 {[%clk 0:02:42]}  e6 {[%clk 0:02:59]} 2. d3 {[%clk 0:02:32]}  d5 {[%clk 0:02:59]} 3. Nd2 {[%clk 0:02:32]}  Nc6 {[%clk 0:02:58]} 4. Ngf3 {[%clk 0:02:32]}  e5 {[%clk 0:02:57]} 5. d4 {[%clk 0:02:27]}  exd4 {[%clk 0:02:36]} 6. Bb5 {[%clk 0:02:23]}  dxe4 {[%clk 0:02:31]} 7. Nxe4 {[%clk 0:02:21]}  Qd5 {[%clk 0:02:25]} 8. Bxc6+ {[%clk 0:01:48]}  bxc6 {[%clk 0:02:19]} 9. O-O {[%clk 0:01:41]}  c5 {[%clk 0:02:07]} 10. Re1 {[%clk 0:01:31]}  Be6 {[%clk 0:02:05]} 11. Neg5 {[%clk 0:01:26]}  O-O-O {[%clk 0:01:50]} 12. Nxe6 {[%clk 0:01:21]}  fxe6 {[%clk 0:01:50]} 13. Qe2 {[%clk 0:01:22]}  Nf6 {[%clk 0:01:40]} 14. Qa6+ {[%clk 0:01:17]}  Kb8 {[%clk 0:01:35]} 15. Bf4 {[%clk 0:01:08]}  Bd6 {[%clk 0:01:29]} 16. Ne5 {[%clk 0:01:04]}  Bxe5 {[%clk 0:01:23]} 17. Rxe5 {[%clk 0:01:05]}  Qb7 {[%clk 0:01:21]} 18. Qa5 {[%clk 0:01:02]}  Nd5 {[%clk 0:01:12]} 19. Bg3 {[%clk 0:01:01]}  Qb6 {[%clk 0:00:51]} 20. Qe1 {[%clk 0:00:56]}  Rhe8 {[%clk 0:00:47]} 21. a4 {[%clk 0:00:56]}  Qb4 {[%clk 0:00:42]} 22. Qf1 {[%clk 0:00:47]}  Ka8 {[%clk 0:00:37]} 23. Rae1 {[%clk 0:00:44]}  Qxb2 {[%clk 0:00:29]} 24. Qa6 {[%clk 0:00:20]}  Qb6 {[%clk 0:00:27]} 25. Qc4 {[%clk 0:00:20]}  Qb4 {[%clk 0:00:23]} 26. Qa6 {[%clk 0:00:19]}  Qb6 {[%clk 0:00:22]} 27. Qc4 {[%clk 0:00:13]}  Qb4 {[%clk 0:00:22]} 28. Qa6 {[%clk 0:00:04]}  Rd6 {[%clk 0:00:20]} 29. Qd3 {[%clk 0:00:04]}  Qc3 {[%clk 0:00:14]} 30. Qb5 {[%clk 0:00:04]}  Rb8 {[%clk 0:00:12]} 31. Qd3 {[%clk 0:00:03]}  Qxd3 {[%clk 0:00:11]} 32. cxd3 {[%clk 0:00:04]}  Rb3 {[%clk 0:00:11]} 33. Rxe6 {[%clk 0:00:00]}  Rxe6 {[%clk 0:00:11]} 0-1


[Site "https://www.chess.com"]

[Event "Titled Tuesday Blitz June 20 Early 2023"]
[White "Ouellet, Maili-Jade"]
[Black "Kev4444444444"]
[WhiteFideId "2620472"]
[WhiteElo "2077"]
[BlackElo "2173"]
[Result "1-0"]
[Round "9"]
[TimeControl "180+2"]
[Date "2023.06.20"]
[WhiteClock "0:00:21"]
[BlackClock "0:00:19"]
[Board "152"]

1. e4 {[%clk 0:03:00]}  c6 {[%clk 0:02:54]} 2. d4 {[%clk 0:02:58]}  d5 {[%clk 0:02:54]} 3. e5 {[%clk 0:02:56]}  c5 {[%clk 0:02:53]} 4. dxc5 {[%clk 0:02:55]}  Nc6 {[%clk 0:02:53]} 5. Nf3 {[%clk 0:02:50]}  Bg4 {[%clk 0:02:43]} 6. Bb5 {[%clk 0:02:41]}  e6 {[%clk 0:02:36]} 7. Be3 {[%clk 0:02:40]}  Ne7 {[%clk 0:02:13]} 8. b4 {[%clk 0:02:34]}  a6 {[%clk 0:01:50]} 9. Ba4 {[%clk 0:02:31]}  Ng6 {[%clk 0:01:50]} 10. Qd4 {[%clk 0:02:22]}  Bxf3 {[%clk 0:01:50]} 11. gxf3 {[%clk 0:02:21]}  a5 {[%clk 0:01:49]} 12. c3 {[%clk 0:02:06]}  axb4 {[%clk 0:01:44]} 13. Bxc6+ {[%clk 0:02:05]}  bxc6 {[%clk 0:01:44]} 14. cxb4 {[%clk 0:02:06]}  Nh4 {[%clk 0:01:29]} 15. Nd2 {[%clk 0:01:56]}  Nf5 {[%clk 0:01:21]} 16. Qd3 {[%clk 0:01:54]}  d4 {[%clk 0:01:14]} 17. Bf4 {[%clk 0:01:50]}  g5 {[%clk 0:01:02]} 18. Bg3 {[%clk 0:01:49]}  h5 {[%clk 0:01:02]} 19. h4 {[%clk 0:01:32]}  gxh4 {[%clk 0:00:53]} 20. Bf4 {[%clk 0:01:32]}  Qd5 {[%clk 0:00:52]} 21. Ne4 {[%clk 0:01:29]}  Be7 {[%clk 0:00:51]} 22. a3 {[%clk 0:01:24]}  O-O {[%clk 0:00:41]} 23. Ke2 {[%clk 0:01:11]}  Rfb8 {[%clk 0:00:40]} 24. Rhg1+ {[%clk 0:01:07]}  Kf8 {[%clk 0:00:34]} 25. Rgb1 {[%clk 0:00:39]}  Ke8 {[%clk 0:00:31]} 26. Kf1 {[%clk 0:00:35]}  Kd7 {[%clk 0:00:30]} 27. a4 {[%clk 0:00:24]}  Ra7 {[%clk 0:00:24]} 28. b5 {[%clk 0:00:22]}  cxb5 {[%clk 0:00:21]} 29. axb5 {[%clk 0:00:21]}  Rxa1 {[%clk 0:00:21]} 30. Rxa1 {[%clk 0:00:21]}  Bxc5 {[%clk 0:00:19]} 31. Nf6+ {[%clk 0:00:21]} 1-0


[Site "https://www.chess.com"]